{"text_format":"1","workbook":"xlsx","n_sheets":4,"sheets":["ETAT DE FRAIS","ANNEXE","FRAIS KM","indemnites etrangeres"],"not_rendered":{"charts":0,"images":2,"macros":1,"external_links":0,"defined_names":15,"comments":0,"pivot_tables":0},"unopened":[],"bounds":{"document_bytes":16777216,"sheet_cells":100000,"rows_first":2000,"rows_last":500,"rows_between":2000,"halvings":0,"cell_chars":16384,"cell_head_chars":4096},"cells_cut":0,"cells_raw":0,"read":"whole","date_system":"1900"}

{"sheet":"ETAT DE FRAIS","index":0,"n_rows":89,"n_cols":13,"rows_kept":89,"cut":false,"hidden":false,"merged":[[81,8,82,8],[79,0,80,7],[32,1,32,5],[33,1,33,5],[32,6,32,7],[33,6,33,7],[71,2,71,3],[72,0,72,1],[38,1,39,5],[38,8,39,8],[38,6,39,7],[65,0,65,10],[60,4,60,5],[66,8,67,10],[57,6,62,10],[66,0,67,1],[66,2,67,3],[66,6,67,7],[60,2,60,3],[61,2,61,3],[62,2,62,3],[42,9,42,10],[43,6,44,7],[62,4,62,5],[31,9,31,10],[27,1,28,1],[32,9,32,10],[33,9,33,10],[37,0,37,5],[37,9,37,10],[32,0,33,0],[36,0,36,10],[27,2,28,2],[30,9,30,10],[31,6,31,7],[29,1,29,2],[27,9,27,10],[31,0,31,5],[29,3,29,7],[30,1,30,2],[69,8,69,10],[71,0,71,1],[71,6,71,7],[73,6,73,7],[69,6,69,7],[70,6,70,7],[68,6,68,7],[68,2,68,3],[70,8,70,10],[68,0,68,1],[69,0,69,1],[70,2,70,3],[70,0,70,1],[87,1,87,2],[89,0,89,1],[89,5,89,9],[84,0,84,10],[85,0,85,10],[86,0,86,10],[87,4,87,6],[88,0,88,1],[88,5,88,9],[79,8,80,8],[81,0,82,5],[81,6,82,7],[1,9,1,10],[2,0,2,7],[3,1,3,3],[16,2,16,7],[5,4,5,7],[5,0,6,1],[5,2,6,3],[13,0,13,1],[6,4,6,5],[5,8,6,9],[5,10,7,10],[6,6,6,7],[3,5,3,7],[3,9,3,10],[17,2,17,10],[21,9,21,10],[74,6,74,7],[75,6,75,7],[66,4,66,5],[69,2,69,3],[68,8,68,10],[62,0,62,1],[64,0,64,5],[57,0,58,1],[83,0,83,10],[73,0,73,1],[72,2,72,3],[73,2,73,3],[71,8,71,10],[72,8,72,10],[72,6,72,7],[79,9,81,10],[74,0,74,1],[76,0,76,1],[74,2,74,3],[75,2,75,3],[74,8,74,10],[75,8,75,10],[76,8,76,10],[77,0,77,1],[82,9,82,10],[76,2,76,3],[77,2,77,3],[77,8,77,10],[76,6,76,7],[51,4,51,5],[42,6,42,7],[51,0,51,1],[45,6,46,7],[45,8,46,10],[40,8,41,10],[43,9,44,10],[43,8,44,8],[77,6,77,7],[75,0,75,1],[73,8,73,10],[61,0,61,1],[60,0,60,1],[52,0,52,4],[51,2,51,3],[49,2,49,3],[50,2,50,3],[59,0,59,1],[57,2,58,3],[57,4,58,5],[56,0,56,10],[61,4,61,5],[59,2,59,3],[59,4,59,5],[38,9,39,10],[37,6,37,7],[50,0,50,1],[47,1,47,3],[49,4,49,5],[50,4,50,5],[40,6,41,7],[42,0,42,5],[38,0,41,0],[40,1,41,5],[43,1,44,5],[43,0,46,0],[45,1,46,5],[47,6,47,8],[22,8,22,10],[25,8,26,10],[21,0,21,7],[23,3,23,7],[24,3,24,7],[25,3,26,7],[27,3,27,7],[28,3,28,7],[22,1,23,2],[22,3,22,7],[24,1,25,1],[24,2,25,2],[26,1,26,2],[22,0,30,0],[28,9,28,10],[30,3,30,5],[23,9,23,10],[24,9,24,10],[29,9,29,10]]}
[]
[]
["ETAT DE FRAIS A REMPLIR A L'ISSUE DE LA MISSION"]
["Nom d'usage :",null,null,null,"Prénom :"]
[]
["Itinéraire (indiquer la résidence de départ, le lieu de mission, la résidence de retour, les points d'arrêt et les séjours privés) (1)",null,"Départ résidence",null,"Lieu de mission",null,null,null,"Retour résidence",null,"Séjour privé"]
[null,null,null,null,"Arrivée",null,"Départ"]
["de","à","date","heure","date","heure","date","heure","date","heure"]
[]
[]
[]
[]
[]
["(1) compléter l'annexe 1 si nécessaire"]
[]
[]
[]
[]
[]
["A - FRAIS DE RESTAURATION ET D'HEBERGEMENT A REMBOURSER A L'AGENT"]
["           1- Frais de séjour en France métropolitaine"]
["Cas général ",null,null,null,null,null,null,null,"Nombre de nuitées","Montant total"]
["Hébergement : Facture d'hôtel à produire et à conserver par le directeur d'unité","Si impossibilité du titulaire du marché d'hébergement (3) :                         ",null,"En IDF remboursement aux frais réels dans la limite de (6)"]
[null,null,null,"- chambre simple      120 €",null,null,null,null,null,{"$f":"I24*120","v":0}]
[null,"de fournir la prestation demandée (4)",null,"- chambre double      130 €",null,null,null,null,null,{"$f":"I25*130","v":0}]
[null,null,null,"Hors IDF remboursement aux frais réels dans la limite de (6)"]
[null,"ou"]
[null,"imprévisibilité de la mission (5)",null,"- chambre simple        90 €",null,null,null,null,null,{"$f":"I28*90","v":0}]
[null,null,null,"- chambre double      110 €",null,null,null,null,null,{"$f":"I29*110","v":0}]
[null,"Hors marché",null,"Taux forfaitaire de 60 €",null,null,null,null,null,{"$f":"I30*60","v":0}]
[null,"Taxe de séjour",null,"Montant de la taxe acquittée (7)",null,null,"Montant ",null,null,{"$f":"H31*I31","v":0}]
[null,null,null,null,null,null,"Nombre de repas",null,"Montant total repas"]
["Repas","A titre onéreux    15,25 €",null,null,null,null,null,null,{"$f":"G33*15.25","v":0}]
[null,"A titre onéreux mais pris dans un restaurant administratif ou assimilé   7,63 €",null,null,null,null,null,null,{"$f":"G34*7.63","v":0}]
["(3) cocher la case correspondante"]
["(4) joindre une attestation du titulaire du marché d'hébergement de passage hors marché"]
["(5) l'appréciation de l'imprévisibilité de la mission relève du directeur d'unité                                                                                                                                                                   (6) si chambre double indiquer le nom et matricule de la seconde personne dans la zone observations                                                                                                                                               (7) En cas de demande de remboursement de la taxe de séjour acquittée par l'agent (uniquement si recours au marché d'hébergement), la taxe de séjour est remboursable sur la base d'un justificatif à concerver par le directeur d'unité dans la limite du plafond du marché"]
["Cas particulier des experts et personnalités scientifiques : justificatifs de dépenses à produire et à conserver par le directeur d'unité",null,null,null,null,null,"Nombre de nuitées",null,"Montant maximum autorisé","Montant total nuitée(s)"]
["Hébergement","Experts scientifiques extérieurs à l'administration, remboursement aux frais réels dans la limite de 120 € (privilégier le recours au marché)",null,null,null,null,null,null,{"$f":"G39*120","v":0}]
[]
[null,"Personnalités scientifiques sur présentation de la décision expresse du Président ou DGDR (8)"]
[]
["(8) joindre la décision à l'état de frais",null,null,null,null,null,"Nombre de repas",null,"Montant maximum autorisé","Montant total repas"]
["Repas","Experts scientifiques extérieurs à l'administration, remboursement aux frais réels dans la limite de 30,50 €",null,null,null,null,null,null,{"$f":"G44*30.5","v":0}]
[]
[null,"Personnalités scientifiques sur présentation de la décision expresse du Président ou DGDR  (8)"]
[]
["Nom d'usage",{"$f":"B4","v":0},null,null,null,"Prénom :",{"$f":"F4","v":0}]
["          2- Frais de séjour à l'étranger"]
[null,null,"Nombre                                     de nuitée(s) ou repas                     (1er taux)",null,"Nombre                                     de nuitée(s) ou repas                 (2ème taux) (9)",null,"Indemnité journalière          (1er taux)","Indemnité journalière (2ème taux)","TOTAL","IJ 1","IJ 2"]
["Hébergement à titre onéreux : facture d'hôtel à produire et à conserver par le directeur d'unité",null,null,null,null,null,{"$f":"(SUM('indemnites etrangeres'!C4)*65%)","v":0},{"$f":"(SUM('indemnites etrangeres'!D4)*65%)","v":0},{"$f":"(C51*G51)+(E51*H51)","v":0},{"$f":"'indemnites etrangeres'!C4","v":0},{"$f":"'indemnites etrangeres'!D4","v":0}]
["Repas à titre onéreux",null,null,null,null,null,{"$f":"(SUM('indemnites etrangeres'!C4)*17.5%)","v":0},{"$f":"(SUM('indemnites etrangeres'!D4)*17.5%)","v":0},{"$f":"(C52*G52)+(E52*H52)","v":0},"Taux 1","Taux 2"]
["Repas à titre onéreux le jour du départ (10)",null,null,null,null,null,{"$f":"IF('indemnites etrangeres'!D4>0,0,'indemnites etrangeres'!C4*'ETAT DE FRAIS'!F53*0.175)","v":0},{"$f":"IF('indemnites etrangeres'!D4>0,F53*'indemnites etrangeres'!D4*0.175,0)","v":0},{"$f":"G53+H53","v":0},{"$f":"'indemnites etrangeres'!C2","v":0},{"$f":"'indemnites etrangeres'!D2","v":0}]
["(9) à utiliser en cas de modification du taux de chancellerie pendant la mission",null,null,null,null,"TOTAL",{"$f":"SUM(G51:G53)","v":0},{"$f":"SUM(H51:H53)","v":0},{"$f":"SUM(I51:I53)","v":0}]
["(10) retour au domicile avant 12h : aucun repas- entre 12h et 21h : 17,5% de l'indemnité journalière - après 21h : 35% de l'indemnité journalière"]
["C - FRAIS DE TRANSPORT"]
["          1- Frais remboursés sur une base indemnitaire"]
["Véhicule personnel autorisé en France, dans les pays limitrophes ainsi qu'en Grande-Bretagne, au Portugal et au Pays-Bas",null,"Indemnité kilométrique                ",null,"Indemnité kilométrique                             (2ème taux)",null,"Produire la copie de l'attestation d'assurance garantissant de manière illimitée la responsabilité de l'agent au titre de tous dommages qui seraient causés par l'utilisation du véhicule à des fins professionnelles, la copie de la carte grise, la copie du permis de conduire valide (11)                                                                        Justificatifs à produire annuellement par l'agent et à conserver par le directeur d'unité"]
[]
["Puissance fiscale véhicule"]
["Nombre de Km parcourus A/R"]
["Taux"]
["TOTAL",null,{"$f":"C62*C61","v":0},null,{"$f":"E62*E61","v":0}]
[]
["  (11) pour être autorisé à utiliser son véhicule personnel à des fins professionnelles"]
["           2- Frais réels dus à l'agent "]
["Nature des frais réels payés par l'agent",null,"Montant en €",null,"Montant en devises",null,"Total en €",null,"Justificatifs à produire et à conserver par le directeur d'unité"]
[null,null,null,null,"1er taux","2ème taux"]
["Avion",null,null,null,null,null,{"$f":"C69+(E69*'indemnites etrangeres'!C3)+(F69*'indemnites etrangeres'!D3)","v":0},null,"Facture ou reçu électronique"]
["Train ou train couchette",null,null,null,null,null,{"$f":"C70+(E70*'indemnites etrangeres'!C3)+(F70*'indemnites etrangeres'!D3)","v":0},null,"Titre de transport ou reçu électronique"]
["Véhicule de location",null,null,null,null,null,{"$f":"C71+(E71*'indemnites etrangeres'!C3)+(F71*'indemnites etrangeres'!D3)","v":0},null,"Facture du loueur"]
["Carburant des véhicules de location (12)",null,null,null,null,null,{"$f":"C72+(E72*'indemnites etrangeres'!C3)+(F72*'indemnites etrangeres'!D3)","v":0},null,"Ticket ou reçu"]
["Péage autoroute",null,null,null,null,null,{"$f":"C73+(E73*'indemnites etrangeres'!C3)+(F73*'indemnites etrangeres'!D3)","v":0},null,"Ticket ou reçu"]
["Parking",null,null,null,null,null,{"$f":"C74+(E74*'indemnites etrangeres'!C3)+(F74*'indemnites etrangeres'!D3)","v":0},null,"Ticket ou reçu"]
["Taxi",null,null,null,null,null,{"$f":"C75+(E75*'indemnites etrangeres'!C3)+(F75*'indemnites etrangeres'!D3)","v":0},null,"Facture ou reçu"]
["Bus, métro, RER",null,null,null,null,null,{"$f":"C76+(E76*'indemnites etrangeres'!C3)+(F76*'indemnites etrangeres'!D3)","v":0},null,"Pas de justificatif à produire, remboursement sur la base du tarif transport public"]
["Frais d'inscription aux colloques",null,null,null,null,null,{"$f":"C77+(E77*'indemnites etrangeres'!C3)+(F77*'indemnites etrangeres'!D3)","v":0},null,"Facture ou reçu et programme du colloque"]
["Autres (indiquer le détail dans observations)",null,null,null,null,null,{"$f":"C78+(E78*'indemnites etrangeres'!C3)+(F78*'indemnites etrangeres'!D3)","v":0},null,"Prévu dans l'instruction (facture ou reçu)"]
["(12) pour les véhicules administratifs, les frais de carburant doivent être réglés à l'aide de la carte de carburant souscrite par le CNRS, dont est doté le véhicule"]
["D - CALCUL DES INDEMNITES par application du barème et en fonction des justificatifs produits",null,null,null,null,null,null,null,{"$f":"J24+J25+J28+J29+J30+I33+I34+J39+I41+J44+I46+I54+C63+E63+G69+G70+G71+G72+G73+G74+G75+G76+G77+G78+J31","v":0},"Contrôle effectué par le gestion du laboratoire"]
[null,null,null,null,null,null,null,null,null,null,null,null,{"$f":"N84","v":0}]
["E - MONTANT dont le remboursement est demandé"]
[null,null,null,null,null,null,null,null,null,"q"]
["F - OBSERVATIONS relatives aux modifications apportées à l'ordre de mission et renseignements propres à faciliter la liquidation de la mission par le SFC"]
[]
["Joindre un RIB en cas de premier paiement ou de changement de compte bancaire"]
["JE CERTIFIE A TOUS EGARDS L'EXACTITUDE DU PRESENT ETAT ET LA PRESENCE DES JUSTIFICATIFS REQUIS"]
["Fait à :",null,null,"Date : "]
["Signature du bénéficiaire ",null,null,null,null," Signature du Responsable de groupe"]

{"sheet":"ANNEXE","index":1,"n_rows":8,"n_cols":11,"rows_kept":8,"cut":false,"hidden":false,"merged":[[6,4,6,5],[6,6,6,7],[2,0,2,7],[1,9,1,10],[3,1,3,3],[5,0,6,1],[5,2,6,3],[5,4,5,7],[5,8,6,9],[5,10,7,10],[3,5,3,7],[3,9,3,10]]}
[null,null,null,null,null,null,null,null,null,null,"Version 5.3 du 04/01/2016"]
["Code division :",{"$f":"'ETAT DE FRAIS'!B2","v":0},null,null,null,null,null,null," N° de mission Geslab",{"$f":"'ETAT DE FRAIS'!J2:K2","v":0}]
["ANNEXE A L'ETAT DE FRAIS DE MISSION"]
["Nom d'usage : ",{"$f":"'ETAT DE FRAIS'!B4:D4","v":0},null,null,"Prénom :",{"$f":"'ETAT DE FRAIS'!F4:I4","v":0},null,null,"Matricule :",{"$f":"'ETAT DE FRAIS'!J4:K4","v":0}]
[]
["Itinéraire (indiquer la résidence de départ, le lieu de mission, la résidence de retour, les points d'arrêt et les séjours privés)",null,"Départ résidence",null,"Lieu de mission",null,null,null,"Retour résidence",null,"Séjour privé"]
[null,null,null,null,"Arrivée",null,"Départ"]
["de","à","date","heure","date","heure","date","heure","date","heure"]

{"sheet":"FRAIS KM","index":2,"n_rows":29,"n_cols":6,"rows_kept":29,"cut":false,"hidden":false,"merged":[[1,2,1,5],[6,2,6,5],[11,2,11,5]]}
["0",null,"LIEU OÙ S’EFFECTUE LE DÉPLACEMENT","JUSQU’À 2 000 KM","DE 2 001 À 10 000 KM","APRÈS 10 000 KM"]
["0,09",null,"Véhicule de 5 CV et moins"]
["0,12",null,"Métropole, Martinique, Guadeloupe, Guyane, La Réunion, Mayotte, Saint-Pierre-et-Miquelon (en euros)",0.25,0.31,0.18]
["0,18",null,"Polynésie française (en F CFP)",40.5,48.6,28.9]
["0,23",null,"Nouvelle-Calédonie (en F CFP) ",40.5,48.6,28.9]
["0,25",null,"Iles Wallis et Futuna (en F CFP) ",42.8,73,30.1]
["0,31",null,"Véhicule de 6 CV et 7 CV"]
["0,32",null,"Métropole, Martinique, Guadeloupe, Guyane, La Réunion, Mayotte, Saint-Pierre-et-Miquelon (en euros)",0.32,0.39,0.23]
["0,35",null,"Polynésie française (en F CFP)",43.9,53.2,31.2]
["0,39",null,"Nouvelle-Calédonie (en F CFP) ",43.9,53.2,31.2]
["0,43",null,"Iles Wallis et Futuna (en F CFP) ",47.5,56.7,33.5]
[null,null,"Véhicule de 8 CV et plus"]
[null,null,"Métropole, Martinique, Guadeloupe, Guyane, La Réunion, Mayotte, Saint-Pierre-et-Miquelon (en euros)",0.35,0.43,0.25]
[null,null,"Polynésie française (en F CFP)",47.5,56.7,33.5]
[null,null,"Nouvelle-Calédonie (en F CFP) ",47.5,56.7,33.5]
[null,null,"Iles Wallis et Futuna (en F CFP) ",49.8,59,34.799999999999997]
[null,null,"LIEU OÙ S’EFFECTUE LE DÉPLACEMENT"," MOTOCYCLETTE (cylindrée supérieure à 125 cm3)","VÉLOMOTEUR et autres véhicules à moteur"]
[null,null,"Métropole, Martinique, Guadeloupe, Guyane, La Réunion, Mayotte, Saint-Pierre-et-Miquelon (en euros)",0.12,0.09]
[null,null,"Polynésie française (en F CFP)",20.3,12.2]
[null,null,"Nouvelle-Calédonie (en F CFP) ",20.3,20.3]
[null,null,"Iles Wallis et Futuna (en F CFP) ",21.4,12.8]
[]
[null,null,"X"]
[]
[null,null,"OUI"]
[null,null,"NON"]
[]
[null,null,1]
[null,null,2]

{"sheet":"indemnites etrangeres","index":3,"n_rows":8,"n_cols":8,"rows_kept":8,"cut":false,"hidden":false,"merged":[[3,0,3,1],[4,0,4,3]]}
[null,"Liens vers le site officiel","Montant 1er taux","Montant 2ème taux *",null,null,null,1]
["Indemnités forfaitaires","http://www.economie.gouv.fr/dgfip/mission_taux_chancellerie/frais",null,null,null,null,null,0]
["Taux de change","http://www.economie.gouv.fr/dgfip/taux_chancellerie_change"]
["TOTAL",null,{"$f":"C2*C3","v":0},{"$f":"D2*D3","v":0}]
["si l'indemnité est en euro ne pas mettre de taux de change mais 1"]
["* à utiliser en cas de modification du taux de chancellerie pendant la mission"]
[]
["Arrêté du 3 juillet 2006 fixant les taux des indemnités de mission "]